fUSD/lending_fUSD_20250530
["ID","MTS","AMOUNT","RATE_DAILY","PERIOD"]
[363132543,1748595056065,-1429.55,0.00022191,2]
[363132544,1748595056076,-985.33,0.00022191,2]
[363132545,1748595056087,-420.0,0.00022191,2]
[363132546,1748595056098,-156.5,0.00022191,2]
[363132547,1748595056111,-690.29,0.00022191,2]
[363132548,1748595056121,-1023.95,0.00022191,2]
[363132549,1748595056132,-420.0,0.00022191,2]
[363132550,1748595056142,-420.0,0.00022191,2]
[363132551,1748595056153,-165.58666501,0.00022191,2]
[363132552,1748595056163,-4520.49,0.00022191,2]
[363132553,1748595056176,-2218.05,0.00022191,2]
[363132554,1748595056186,-151.0,0.00022191,7]
[363132555,1748595056197,-151.0,0.00022191,7]
[363132556,1748595056207,-420.0,0.00022191,2]
[363132557,1748595056217,-559.75,0.00022191,2]
[363132558,1748595056227,-1067.09,0.00022191,2]
[363132559,1748595056237,-3054.1,0.00022191,2]
[363132560,1748595056247,-151.0,0.00022191,7]
[363132561,1748595056258,-3728.34,0.00022191,2]
[363132562,1748595056267,-420.0,0.00022191,2]
[363132563,1748595056277,-151.0,0.00022191,7]
[363132564,1748595056288,-427.19,0.00022191,2]
[363132565,1748595056297,-621.05,0.00022191,2]
[363132566,1748595056307,-1203.63,0.00022191,2]
[363132567,1748595056318,-160.0,0.00022191,2]
[363132568,1748595056327,-755.14,0.00022191,2]
[363132569,1748595056337,-420.0,0.00022191,2]
[363132570,1748595056347,-420.0,0.00022191,2]
[363132571,1748595056357,-420.0,0.00022191,2]
[363132572,1748595056367,-477.41,0.00022191,2]
[363132573,1748595056377,-431.13,0.00022191,2]
[363132574,1748595056387,-160.0,0.00022191,2]
[363132575,1748595056397,-1184.62,0.00022191,2]
[363132576,1748595056408,-671.42,0.00022191,2]
[363132577,1748595056418,-5972.3,0.00022191,2]
[363132578,1748595056428,-634.13,0.00022191,2]
[363132579,1748595056438,-420.0,0.00022191,2]
[363132580,1748595056448,-420.0,0.00022191,2]
[363132581,1748595056458,-236.821043,0.00022191,7]
[363132582,1748595056467,-420.0,0.00022191,2]
[363132583,1748595056477,-236.821043,0.00022191,7]
[363132584,1748595056488,-469.32,0.00022191,2]
[363132585,1748595056501,-509.65481666,0.00022191,2]
[363132586,1748595056511,-825.66,0.00022191,2]
[363132587,1748595056521,-1547.86,0.00022191,2]
[363132588,1748595056531,-420.0,0.00022191,2]
[363132589,1748595056542,-420.0,0.00022191,2]
[363132590,1748595056552,-2252.41,0.00022191,2]
[363132591,1748595056561,-1010.64,0.00022191,2]
[363132592,1748595056571,-11143.25,0.00022191,2]
[363132593,1748595056583,-236.821043,0.00022191,7]
[363132594,1748595056594,-420.0,0.00022191,2]
[363132595,1748595056605,-236.821043,0.00022191,7]
[363132596,1748595056614,-420.0,0.00022191,2]
[363132597,1748595056624,-420.0,0.00022191,2]
[363132598,1748595056634,-1284.74,0.00022191,2]
[363132599,1748595056645,-1411.5,0.00022191,2]
[363132600,1748595056655,-420.0,0.00022191,2]
[363132601,1748595056664,-420.0,0.00022191,2]
[363132602,1748595056674,-2361.74,0.00022191,2]
[363132603,1748595056683,-4994.61,0.00022191,2]
[363132604,1748595056693,-740.45,0.00022191,2]
[363132605,1748595056703,-1578.77,0.00022191,2]
[363132606,1748595056712,-420.0,0.00022191,2]
[363132607,1748595056723,-420.0,0.00022191,2]
[363132608,1748595056733,-727.44,0.00022191,2]
[363132609,1748595056743,-420.0,0.00022191,2]
[363132610,1748595056753,-2395.39,0.00022191,2]
[363132611,1748595056762,-420.0,0.00022191,2]
[363132612,1748595056772,-612.4,0.00022191,2]
[363132613,1748595056782,-420.0,0.00022191,2]
[363132614,1748595056792,-420.0,0.00022191,2]
[363132615,1748595056802,-420.0,0.00022191,2]
[363132616,1748595056813,-151.0,0.00022191,7]
[363132617,1748595056823,-151.0,0.00022191,7]
[363132618,1748595056834,-1190.58,0.00022191,2]
[363132619,1748595056844,-420.0,0.00022191,2]
[363132620,1748595056854,-420.0,0.00022191,2]
[363132621,1748595056865,-181.0,0.00022192,7]
[363132622,1748595056875,-2105.15566893,0.00022194,2]
[363132623,1748595056887,-562.35,0.000222,2]
[363132624,1748595056897,-3632.93664665,0.000222,6]
[363132625,1748595056907,-3632.9366465,0.000222,6]
[363132626,1748595056917,-3632.9366465,0.000222,6]
[363132627,1748595056928,-3632.9366465,0.000222,6]
[363132628,1748595056938,-3632.9366465,0.000222,6]
[363132629,1748595056948,-3632.9366465,0.000222,6]
[363132630,1748595056959,-200.0,0.00022206,2]
[363132631,1748595056968,-250.0,0.00022206,2]
[363132632,1748595056979,-2105.15566893,0.0002222,2]
[363132633,1748595056989,-150.0,0.00022222,2]
[363132634,1748595056999,-257.14389422,0.00022228,2]
[363132635,1748595057009,-587.38219395,0.00022247,2]
[363132636,1748595057019,-2105.15566893,0.00022247,2]
[363132637,1748595057029,-150.0,0.00022251,2]
[363132638,1748595057039,-150.0,0.00022264,2]
[363132639,1748595057049,-182.609687,0.00022271,7]
[363132640,1748595057161,-151.0,0.00022273,7]
[363132641,1748595057171,-30761.10699518,0.00022273,2]
[363132642,1748595057180,-2105.15566893,0.00022274,2]
[363132643,1748595057190,-941.0,0.00022285,2]
[363132644,1748595057199,-1314.0,0.00022285,2]
[363132645,1748595057208,-634.0,0.00022285,2]
[363132646,1748595057217,-801.0,0.00022285,2]
[363132647,1748595057226,-1155.0,0.00022285,2]
[363132648,1748595057236,-924.0,0.00022285,2]
[363132649,1748595057245,-1268.0,0.00022285,2]
[363132650,1748595057254,-556.0,0.00022285,2]
[363132651,1748595057264,-1466.0,0.00022285,2]
[363132652,1748595057273,-588.0,0.00022285,2]
[363132653,1748595057283,-278.467,0.00022285,2]
[363132654,1748595057292,-4068.0,0.00022285,2]
[363132655,1748595057301,-882.0,0.00022285,2]
[363132656,1748595057311,-6929.0,0.00022285,2]
[363132657,1748595057320,-151.0,0.00022291,7]
[363132658,1748595057330,-151.0,0.00022291,7]
[363132659,1748595057339,-151.0,0.00022291,7]
[363132660,1748595057349,-166.24,0.00022293,2]
[363132661,1748595057359,-151.0,0.000223,7]
[363132662,1748595057369,-151.0,0.000223,7]
[363132663,1748595057378,-151.0,0.000223,7]
[363132664,1748595057388,-2105.15566893,0.00022301,2]
[363132665,1748595057398,-559.0,0.00022301,2]
[363132666,1748595057408,-150.0,0.00022307,2]
[363132667,1748595057417,-2105.15566893,0.00022328,2]
[363132668,1748595057427,-587.38219395,0.00022329,2]
[363132669,1748595057436,-617.0,0.0002233,2]
[363132670,1748595057446,-234.723718,0.0002233,7]
[363132671,1748595057456,-234.723718,0.0002233,7]
[363132672,1748595057465,-30761.10699518,0.0002233,2]
[363132673,1748595057474,-153.644153,0.0002233,7]
[363132674,1748595057483,-171.10391974,0.0002233,2]
[363132675,1748595057494,-11868.44749583,0.0002233,2]
[363132676,1748595057505,-177.44764492,0.0002233,2]
[363132677,1748595057515,-3632.9366465,0.00022348,7]
[363132678,1748595057524,-150.0,0.00022395,2]
[363132679,1748595057534,-480.0,0.000224,2]
[363132680,1748595057543,-951.0,0.000224,2]
[363132681,1748595057553,-375.0,0.000224,2]
[363132682,1748595057563,-377.1109,0.000224,2]
[363132683,1748595057574,-150.0,0.0002241,2]
[363132684,1748595057585,-256.43617752,0.0002241,2]
[363132685,1748595057594,-159.9931258,0.0002241,2]
[363132686,1748595057604,-241.8252228,0.0002241,2]
[363132687,1748595057613,-157.5611572,0.0002241,2]
[363132688,1748595057622,-150.0,0.0002241,2]
[363132689,1748595057632,-200.0,0.0002241,2]
[363132690,1748595057642,-500.0,0.0002241,2]
[363132691,1748595057651,-534.0,0.0002241,2]
[363132692,1748595057661,-500.0,0.0002241,2]
[363132693,1748595057670,-500.0,0.0002241,2]
[363132694,1748595057680,-150.0,0.0002241,2]
[363132695,1748595057689,-150.0,0.0002241,2]
[363132696,1748595057698,-1164.0,0.0002241,2]
[363132697,1748595057708,-167.27714452,0.00022411,2]
[363132698,1748595057717,-587.38219395,0.00022411,2]
[363132699,1748595057726,-153.978837,0.00022421,7]
[363132700,1748595057736,-151.0,0.00022421,7]
[363132701,1748595057745,-151.0,0.00022421,7]
[363132702,1748595057754,-151.0,0.00022421,7]
[363132703,1748595057764,-151.0,0.00022421,7]
[363132704,1748595057773,-195.211892,0.00022421,7]
[363132705,1748595057782,-6514.8825945,0.00022422,2]
[363132706,1748595057792,-45936.0719725,0.00022422,2]
[363132707,1748595057802,-1151.0948778,0.00022422,2]
[363132708,1748595057811,-151.0,0.00022422,7]
[363132709,1748595057821,-151.0,0.00022422,7]
[363132710,1748595057830,-208.631825,0.00022422,7]
[363132711,1748595057839,-288.825109,0.00022428,7]
[363132712,1748595057848,-234.723718,0.00022428,7]
[363132713,1748595057859,-234.723718,0.00022428,7]
[363132714,1748595057868,-2317.034182,0.00022428,7]
[363132715,1748595057877,-2317.034182,0.00022428,7]
[363132716,1748595057887,-151.0,0.00022428,7]
[363132717,1748595057896,-151.0,0.00022428,7]
[363132718,1748595057905,-151.0,0.00022428,7]
[363132719,1748595057914,-151.0,0.00022428,7]
[363132720,1748595057924,-151.0,0.00022428,7]
[363132721,1748595057933,-274.789184,0.00022428,7]
[363132722,1748595057942,-236.821043,0.00022428,7]
[363132723,1748595057952,-236.821043,0.00022428,7]
[363132724,1748595057962,-151.0,0.00022429,7]
[363132725,1748595057971,-151.0,0.00022429,7]
[363132726,1748595057980,-151.0,0.00022429,7]
[363132727,1748595057989,-151.0,0.00022429,7]
[363132728,1748595057998,-517.37190044,0.00022429,2]
[363132729,1748595058008,-151.0,0.00022429,7]
[363132730,1748595058017,-183.160976,0.00022429,7]
[363132731,1748595058026,-151.0,0.00022429,7]
[363132732,1748595058036,-151.0,0.00022429,7]
[363132733,1748595058045,-156.304294,0.00022429,7]
[363132734,1748595058054,-151.0,0.00022429,7]
[363132735,1748595058063,-151.0,0.00022429,7]
[363132736,1748595058073,-151.0,0.00022429,7]
[363132737,1748595058082,-151.0,0.00022429,7]
[363132738,1748595058091,-979.96626,0.00022429,2]
[363132739,1748595058100,-180434.60839828,0.00022429,2]
[363132740,1748595058593,-630.075,0.00022429,2]
[363132741,1748595058641,-1052.5,0.00022429,2]
[363132742,1748595058969,-420.0,0.00021917,2]
[363132743,1748595058979,-97.52866136,0.00021917,2]
[363132744,1748595058991,-322.47133864,0.00021917,2]
[363132745,1748595059001,-519.52866136,0.00021917,2]
[363132746,1748595059017,-7134.84133864,0.00021917,2]
[363132747,1748595059027,-420.0,0.00021917,2]
[363132748,1748595059037,-420.0,0.00021917,2]
[363132749,1748595059047,-152.26,0.00022191,2]
[363132750,1748595059057,-7654.37,0.00022191,2]
[363132751,1748595059066,-848.0,0.00022285,2]
[363132752,1748595059076,-388936.01959511,0.00022429,2]
[363132753,1748595059114,-420.0,0.00022191,2]
[363132754,1748595059124,-449.40076939,0.00022429,2]
[363132755,1748595060142,-422.82641689,0.00021,2]
[363132756,1748595060152,-420.0,0.00021917,2]
[363132757,1748595060162,-1262.17358311,0.00022045,2]
[363132758,1748595060173,-2950.14087905,0.00022045,2]
[363132759,1748595060184,-317.68656233,0.00022045,2]
[363132760,1748595131372,773.0,0.000196,5]
[363132761,1748595193837,909.0,0.000194,5]
[363132782,1748595385266,-522.68534186,0.00024657,30]
[363132783,1748595385399,-229.31,0.00025981,120]
[363132784,1748595385616,-727.0,0.00028,120]
[363132785,1748595385666,-229.31,0.0002858,120]
[363132786,1748595385692,-500.0,0.00028767,30]
[363132787,1748595385728,-152.0,0.00029,120]
[363132788,1748595385753,-152.0,0.00029,120]
[363132789,1748595385779,-500.0,0.00029315,30]
[363132790,1748595385806,-500.0,0.00029589,30]
[363132791,1748595385832,-420.92909667,0.00029863,30]
[363132792,1748595385857,-421.98681058,0.00029863,30]
[363132793,1748595385884,-429.55950056,0.0003,30]
[363132794,1748595385911,-1500.0,0.0003,120]
[363132795,1748595385938,-750.79754042,0.0003,30]
[363132796,1748595385965,-600.0,0.0003,120]
[363132797,1748595385991,-10000.0,0.0003,30]
[363132798,1748595386016,-290.47329907,0.0003,120]
[363132799,1748595386040,-532.37677914,0.0003,120]
[363132800,1748595386064,-203.06392552,0.0003,60]
[363132801,1748595386090,-500.0,0.0003,120]
[363132802,1748595386114,-337.79064274,0.0003,30]
[363132803,1748595386141,-179.61,0.00030164,30]
[363132804,1748595386169,-281.12652333,0.00031,120]
[363132805,1748595386196,-229.31,0.00031178,120]
[363132806,1748595386230,-183.22,0.00031395,120]
[363132807,1748595386593,-600.0,0.00032,120]
[363132808,1748595386621,-10000.0,0.00032,60]
[363132809,1748595386651,-700.0,0.00032876,120]
[363132810,1748595386678,-700.0,0.00032876,120]
[363132811,1748595386705,-700.0,0.00032876,120]
[363132812,1748595386730,-700.0,0.00032876,120]
[363132813,1748595386756,-404.34117493,0.00032876,120]
[363132814,1748595386783,-1153.04,0.00032876,120]
[363132815,1748595386811,-1153.04,0.00032904,120]
[363132816,1748595386838,-1153.04,0.00032931,120]
[363132817,1748595386864,-1000.0,0.00032948,30]
[363132818,1748595386889,-1153.04,0.00032958,120]
[363132819,1748595386915,-1153.04,0.00032986,120]
[363132820,1748595386942,-1000.0,0.00033,120]
[363132821,1748595386967,-355.19178536,0.00033,120]
[363132822,1748595386993,-1198.58622758,0.00033,120]
[363132823,1748595387019,-1153.04,0.00033013,120]
[363132824,1748595387045,-1153.04,0.00033041,120]
[363132825,1748595387071,-1153.04,0.00033068,120]
[363132826,1748595387096,-1153.04,0.00033095,120]
[363132827,1748595387122,-1153.04,0.00033123,120]
[363132828,1748595387148,-1153.04,0.0003315,120]
[363132829,1748595387174,-1153.04,0.00033178,120]
[363132830,1748595387200,-1153.04,0.00033205,120]
[363132831,1748595387225,-1153.04,0.00033232,120]
[363132832,1748595387251,-1153.04,0.0003326,120]
[363132833,1748595387277,-1153.04,0.00033287,120]
[363132834,1748595387310,-236.02,0.000335,31]
[363132835,1748595387342,-236.02,0.000335,31]
[363132836,1748595387374,-236.02,0.000335,31]
[363132837,1748595387405,-236.02,0.000335,31]
[363132838,1748595387436,-236.02,0.000335,31]
[363132839,1748595387466,-236.02,0.000335,31]
[363132840,1748595387496,-236.02,0.000335,31]
[363132841,1748595387526,-236.02,0.000335,31]
[363132842,1748595387556,-236.02,0.000335,31]
[363132843,1748595387586,-236.02,0.000335,31]
[363132844,1748595387619,-236.02,0.000335,31]
[363132845,1748595387650,-236.02,0.000335,31]
[363132846,1748595387677,-600.0,0.00034,120]
[363132847,1748595387707,-499.999999,0.000349,120]
[363132848,1748595387731,-4791.1343597,0.000349,120]
[363132849,1748595387756,-1138.85779716,0.00035,120]
[363132850,1748595387780,-1258.47295275,0.00035,30]
[363132851,1748595387805,-1000.0,0.00035,120]
[363132852,1748595387830,-2444.54181947,0.00035,90]
[363132853,1748595387854,-152.0,0.00035,120]
[363132854,1748595387879,-2359.74955175,0.00035,42]
[363132855,1748595387905,-152.0,0.000353,120]
[363132856,1748595387930,-857.0,0.00035616,60]
[363132857,1748595387956,-461.12801,0.00035888,30]
[363132858,1748595387984,-600.0,0.00036,120]
[363132859,1748595388010,-1714.6393199,0.00036,37]
[363132860,1748595388036,-461.12801,0.00036088,30]
[363132861,1748595388061,-461.12801,0.00036288,30]
[363132862,1748595388094,-236.02,0.000363,31]
[363132863,1748595388125,-236.02,0.000363,31]
[363132864,1748595388157,-236.02,0.000363,31]
[363132865,1748595388189,-236.02,0.000363,31]
[363132866,1748595388221,-236.02,0.000363,31]
[363132867,1748595388250,-236.02,0.000363,31]
[363132868,1748595388280,-236.02,0.000363,31]
[363132869,1748595388314,-236.02,0.000363,31]
[363132870,1748595388348,-236.02,0.000363,31]
[363132871,1748595388381,-236.02,0.000363,31]
[363132872,1748595388413,-236.02,0.000363,31]
[363132873,1748595388443,-236.02,0.000363,31]
[363132874,1748595388474,-236.02,0.000363,31]
[363132875,1748595388505,-236.02,0.000363,31]
[363132876,1748595388536,-236.02,0.000363,31]
[363132877,1748595388568,-236.02,0.000363,31]
[363132878,1748595388598,-236.02,0.000363,31]
[363132879,1748595388632,-236.02,0.000363,31]
[363132880,1748595388664,-236.02,0.000363,31]
[363132881,1748595388694,-236.02,0.000363,31]
[363132882,1748595388727,-236.02,0.000363,31]
[363132883,1748595388758,-236.02,0.000363,31]
[363132884,1748595388789,-236.02,0.000363,31]
[363132885,1748595388820,-236.02,0.000363,31]
[363132886,1748595388845,-461.12801,0.00036488,30]
[363132887,1748595388871,-317.97,0.000365,120]
[363132888,1748595388896,-695.16351495,0.000365,120]
[363132889,1748595388923,-461.12801,0.00036688,30]
[363132890,1748595388948,-461.12801,0.00036888,30]
[363132891,1748595388972,-1522.34870701,0.000369,120]
[363132892,1748595388999,-1800.0,0.00037,38]
[363132893,1748595389024,-461.12801,0.00037088,30]
[363132894,1748595389049,-189.53018323,0.000372,120]
[363132895,1748595389074,-189.53018323,0.000372,120]
[363132896,1748595389102,-461.12801,0.00037288,30]
[363132897,1748595389130,-461.12801,0.00037488,30]
[363132898,1748595389157,-14400.0,0.000375,120]
[363132899,1748595389184,-461.12801,0.00037688,30]
[363132900,1748595389215,-461.12801,0.00037888,30]
[363132901,1748595389240,-1800.0,0.00038,39]
[363132902,1748595389462,-600.0,0.00038,120]
[363132903,1748595389488,-164.64992229,0.00038,30]
[363132904,1748595389514,-500.0,0.00038,120]
[363132905,1748595389539,-500.0,0.00038,120]
[363132906,1748595389563,-500.0,0.00038,120]
[363132907,1748595389588,-461.12801,0.00038088,30]
[363132908,1748595389614,-461.12801,0.00038288,30]
[363132909,1748595389640,-177.892669,0.00038356,120]
[363132910,1748595389667,-461.12801,0.00038488,30]
[363132911,1748595389693,-461.12801,0.00038688,30]
[363132912,1748595389718,-2899.68,0.000388,60]
[363132913,1748595389743,-208.20771085,0.00039,120]
[363132914,1748595389767,-187.00575491,0.00039,120]
[363132915,1748595389792,-10058.87690722,0.00039,30]
[363132916,1748595389817,-1800.0,0.00039,40]
[363132917,1748595389842,-3145.0,0.00039,120]
[363132918,1748595389867,-192.0,0.00039,30]
[363132919,1748595389893,-461.12801,0.00039088,30]
[363132920,1748595389925,-236.02,0.000391,31]
[363132921,1748595389955,-236.02,0.000391,31]
[363132922,1748595389985,-236.02,0.000391,31]
[363132923,1748595390015,-236.02,0.000391,31]
[363132924,1748595390047,-236.02,0.000391,31]
[363132925,1748595390078,-236.02,0.000391,31]
[363132926,1748595390108,-236.02,0.000391,31]
[363132927,1748595390138,-236.02,0.000391,31]
[363132928,1748595390170,-236.02,0.000391,31]
[363132929,1748595390201,-236.02,0.000391,31]
[363132930,1748595390232,-236.02,0.000391,31]
[363132931,1748595390264,-236.02,0.000391,31]
[363132932,1748595390296,-236.02,0.000391,31]
[363132933,1748595390328,-236.02,0.000391,31]
[363132934,1748595390360,-236.02,0.000391,31]
[363132935,1748595390391,-236.02,0.000391,31]
[363132936,1748595390421,-236.02,0.000391,31]
[363132937,1748595390451,-236.02,0.000391,31]
[363132938,1748595390482,-236.02,0.000391,31]
[363132939,1748595390514,-236.02,0.000391,31]
[363132940,1748595390545,-236.02,0.000391,31]
[363132941,1748595390576,-236.02,0.000391,31]
[363132942,1748595390607,-236.02,0.000391,31]
[363132943,1748595390641,-236.02,0.000391,31]
[363132944,1748595390668,-150.0,0.00039188,120]
[363132945,1748595390694,-150.0,0.00039213,120]
[363132946,1748595390719,-461.12801,0.00039288,30]
[363132947,1748595390744,-461.12801,0.00039488,30]
[363132948,1748595390769,-160.0,0.000395,30]
[363132949,1748595390795,-150.0,0.00039577,120]
[363132951,1748595390819,-461.12801,0.00039688,30]
[363132952,1748595390843,-150.0,0.00039693,120]
[363132953,1748595390873,-433.0,0.00039886,90]
[363132954,1748595390897,-461.12801,0.00039888,30]
[363132955,1748595390924,-153.2035605,0.000399,30]
[363132956,1748595390949,-2042.0,0.000399,30]
[363132957,1748595390975,-150.0,0.00039981,120]
[363132958,1748595391000,-433.0,0.00039986,90]
[363132959,1748595391025,-251.09702278,0.00039987,30]
[363132960,1748595391052,-150.0,0.00039992,120]
[363132961,1748595391077,-6478.96,0.00039998,120]
[363132962,1748595391103,-2000.0,0.00039999,31]
[363132963,1748595391133,-50000.0,0.0004,40]
[363132964,1748595391163,-50000.0,0.0004,30]
[363132965,1748595391192,-575.00752927,0.0004,120]
[363132966,1748595391219,-1169.90495111,0.0004,120]
[363132967,1748595391247,-706.36794572,0.0004,120]
[363132968,1748595391272,-621.51857334,0.0004,120]
[363132969,1748595391299,-163.76692494,0.0004,120]
[363132970,1748595391327,-203.05625579,0.0004,30]
[363132971,1748595391354,-500.0,0.0004,90]
[363132972,1748595391380,-487.74574466,0.0004,120]
[363132973,1748595391408,-1676.35949231,0.0004,30]
[363132974,1748595391437,-710.02108613,0.0004,30]
[363132975,1748595391465,-319.68358497,0.0004,30]
[363132976,1748595391492,-108721.70287627,0.0004,30]
[363132977,1748595391519,-15156.37232403,0.0004,30]
[363132978,1748595391547,-1000.0,0.0004,120]
[363132979,1748595391576,-600.0,0.0004,120]
[363132980,1748595391603,-55060.13476946,0.0004,120]
[363132981,1748595391632,-179.57694552,0.0004,120]
[363132982,1748595391660,-1510.35,0.0004,120]
[363132983,1748595391688,-500.0,0.0004,120]
[363132984,1748595391716,-326.0222666,0.0004,120]
[363132985,1748595391743,-2028.162802,0.0004,30]
[363132986,1748595391769,-829.0,0.0004,120]
[363132987,1748595391796,-192.0,0.0004,30]
[363132988,1748595391821,-447.0,0.0004,120]
[363132989,1748595391850,-4832.68637392,0.0004,30]
[363132990,1748595391878,-150.0,0.00040018,120]
[363132991,1748595391906,-150.0,0.00040051,120]
[363132992,1748595391931,-461.12801,0.00040088,30]
[363132993,1748595391957,-150.0,0.00040117,120]
[363132994,1748595391985,-150.0,0.00040197,120]
[363132995,1748595392012,-1988.99,0.0004028,90]
[363132996,1748595392039,-461.12801,0.00040288,30]
[363132997,1748595392305,-150.0,0.0004039,120]
[363132998,1748595392333,-303.7008833,0.00040431,30]
[363132999,1748595392359,-461.12801,0.00040488,30]
[363133000,1748595392386,-150.0,0.00040494,120]
[363133001,1748595392413,-160.0,0.000405,35]
[363133002,1748595392439,-1977.74960725,0.000405,120]
[363133003,1748595392465,-8780.24656506,0.00040582,120]
[363133004,1748595392491,-191.11462118,0.00040658,120]
[363133005,1748595392519,-461.12801,0.00040688,30]
[363133006,1748595392546,-150.0,0.00040746,120]
[363133007,1748595392572,-31570.61330694,0.00040747,120]
[363133008,1748595392598,-12482.36701057,0.0004088,120]
[363133009,1748595392626,-1774.71648514,0.0004088,120]
[363133010,1748595392651,-461.12801,0.00040888,30]
[363133011,1748595392681,-50000.0,0.00041,41]
[363133012,1748595392710,-50000.0,0.00041,31]
[363133013,1748595392736,-3145.0,0.00041,120]
[363133014,1748595392761,-1416.38,0.00041,120]
[363133015,1748595392788,-150.0,0.00041049,120]
[363133016,1748595392815,-461.12801,0.00041088,30]
[363133017,1748595392841,-588.77011746,0.00041095,30]
[363133018,1748595392867,-461.16,0.00041095,120]
[363133019,1748595392893,-461.16,0.00041095,120]
[363133020,1748595392921,-461.16,0.00041095,120]
[363133021,1748595392947,-461.16,0.00041095,120]
[363133022,1748595392973,-461.16,0.00041095,120]
[363133023,1748595392998,-461.16,0.00041095,120]
[363133024,1748595393025,-461.16,0.00041095,120]
[363133025,1748595393054,-461.16,0.00041095,120]
[363133026,1748595393081,-461.16,0.00041095,120]
[363133027,1748595393110,-461.16,0.00041095,120]
[363133028,1748595393140,-461.16,0.00041095,120]
[363133029,1748595393170,-461.16,0.00041095,120]
[363133030,1748595393206,-461.16,0.00041095,120]
[363133031,1748595393234,-461.16,0.00041095,120]
[363133032,1748595393261,-461.16,0.00041095,120]
[363133033,1748595393289,-461.16,0.00041095,120]
[363133034,1748595393319,-461.16,0.00041095,120]
[363133035,1748595393347,-461.16,0.00041095,120]
[363133036,1748595393376,-461.16,0.00041095,120]
[363133037,1748595393405,-461.16,0.00041095,120]
[363133038,1748595393434,-461.16,0.00041095,120]
[363133039,1748595393462,-461.16,0.00041095,120]
[363133040,1748595393490,-461.16,0.00041095,120]
[363133041,1748595393520,-461.2577829,0.00041095,120]
[363133042,1748595393549,-4000.0,0.00041096,30]
[363133043,1748595393579,-512.0,0.00041096,30]
[363133044,1748595393608,-592.0,0.00041096,30]
[363133045,1748595393641,-334.20262951,0.00041096,31]
[363133046,1748595393673,-152.0,0.000411,120]
[363133047,1748595393702,-266.44591845,0.000411,120]
[363133048,1748595393730,-266.44591845,0.000411,120]
[363133049,1748595393757,-266.44591845,0.000411,120]
[363133050,1748595393784,-266.44591845,0.000411,120]
[363133051,1748595393812,-266.44591845,0.000411,120]
[363133052,1748595393839,-266.44591845,0.000411,120]
[363133053,1748595393865,-266.44591845,0.000411,120]
[363133054,1748595393891,-266.44591845,0.000411,120]
[363133055,1748595393918,-266.44591845,0.000411,120]
[363133056,1748595393947,-266.44591845,0.000411,120]
[363133057,1748595393974,-266.44591845,0.000411,120]
[363133058,1748595394001,-266.44591845,0.000411,120]
[363133059,1748595394028,-266.44591845,0.000411,120]
[363133060,1748595394055,-266.44591845,0.000411,120]
[363133061,1748595394082,-266.44591845,0.000411,120]
[363133062,1748595394110,-266.44591845,0.000411,120]
[363133063,1748595394137,-266.44591845,0.000411,120]